[Event "Titled Tuesday Blitz February 14 Late 2023"]
[White "Koellner, Ruben Gideon"]
[Black "Ehlvest, Jaan"]
[WhiteFideId "12993093"]
[BlackFideId "4500016"]
[WhiteElo "2426"]
[BlackElo "2530"]
[Result "0-1"]
[Round "08"]
[TimeControl "180+2"]
[Date "2023.02.14"]
[WhiteClock "0:00:03"]
[BlackClock "0:00:10"]

1. d4 {[%clk 0:03:00]}  Nf6 {[%clk 0:01:40]} 2. Nf3 {[%clk 0:02:57]}  c5 {[%clk 0:01:38]} 3. e3 {[%clk 0:02:56]}  g6 {[%clk 0:01:36]} 4. Nbd2 {[%clk 0:02:53]}  b6 {[%clk 0:01:35]} 5. c3 {[%clk 0:02:51]}  Bg7 {[%clk 0:01:34]} 6. Bd3 {[%clk 0:02:51]}  O-O {[%clk 0:01:34]} 7. O-O {[%clk 0:02:51]}  Bb7 {[%clk 0:01:34]} 8. Qe2 {[%clk 0:02:50]}  d6 {[%clk 0:01:32]} 9. e4 {[%clk 0:02:49]}  e6 {[%clk 0:01:31]} 10. a3 {[%clk 0:02:43]}  Nbd7 {[%clk 0:01:31]} 11. b4 {[%clk 0:02:43]}  a6 {[%clk 0:01:30]} 12. Bb2 {[%clk 0:02:42]}  Qc7 {[%clk 0:01:29]} 13. Rfe1 {[%clk 0:02:38]}  Rfd8 {[%clk 0:01:26]} 14. Rad1 {[%clk 0:02:36]}  b5 {[%clk 0:01:25]} 15. Nf1 {[%clk 0:02:30]}  Rac8 {[%clk 0:01:22]} 16. Ng3 {[%clk 0:02:23]}  cxd4 {[%clk 0:01:17]} 17. cxd4 {[%clk 0:02:23]}  Nb6 {[%clk 0:01:17]} 18. Rc1 {[%clk 0:02:07]}  Qb8 {[%clk 0:01:16]} 19. Nd2 {[%clk 0:02:04]}  h5 {[%clk 0:01:10]} 20. f3 {[%clk 0:01:56]}  h4 {[%clk 0:01:09]} 21. Ngf1 {[%clk 0:01:56]}  Nh5 {[%clk 0:01:09]} 22. g3 {[%clk 0:01:49]}  Na4 {[%clk 0:00:53]} 23. Ba1 {[%clk 0:01:48]}  Qa7 {[%clk 0:00:53]} 24. Qe3 {[%clk 0:01:43]}  Kh7 {[%clk 0:00:51]} 25. f4 {[%clk 0:01:28]}  Nf6 {[%clk 0:00:49]} 26. Kg2 {[%clk 0:01:19]}  Ng4 {[%clk 0:00:45]} 27. Qg1 {[%clk 0:01:17]}  f5 {[%clk 0:00:42]} 28. h3 {[%clk 0:01:09]}  Nf6 {[%clk 0:00:41]} 29. Qe3 {[%clk 0:00:46]}  Qa8 {[%clk 0:00:36]} 30. Rxc8 {[%clk 0:00:16]}  Rxc8 {[%clk 0:00:36]} 31. Kh2 {[%clk 0:00:16]}  hxg3+ {[%clk 0:00:30]} 32. Nxg3 {[%clk 0:00:17]}  Nc3 {[%clk 0:00:21]} 33. Rg1 {[%clk 0:00:13]}  Ncxe4 {[%clk 0:00:20]} 34. Ngxe4 {[%clk 0:00:11]}  fxe4 {[%clk 0:00:19]} 35. Be2 {[%clk 0:00:11]}  Rc2 {[%clk 0:00:16]} 36. Bd1 {[%clk 0:00:08]}  Ra2 {[%clk 0:00:14]} 37. Bb3 {[%clk 0:00:08]}  Rxa3 {[%clk 0:00:14]} 38. Bb2 {[%clk 0:00:08]}  Rxb3 {[%clk 0:00:12]} 39. Nxb3 {[%clk 0:00:08]}  Bd5 {[%clk 0:00:12]} 40. Nd2 {[%clk 0:00:07]}  Qe8 {[%clk 0:00:12]} 41. Qg3 {[%clk 0:00:05]}  Nh5 {[%clk 0:00:12]} 42. Qg5 {[%clk 0:00:04]}  Bh6 {[%clk 0:00:12]} 43. Qg2 {[%clk 0:00:02]}  Bxf4+ {[%clk 0:00:12]} 44. Kh1 {[%clk 0:00:02]}  Ng3+ {[%clk 0:00:12]} 45. Kh2 {[%clk 0:00:03]}  Ne2+ {[%clk 0:00:11]} 46. Kh1 {[%clk 0:00:03]}  e3 {[%clk 0:00:11]} 47. Nf3 {[%clk 0:00:03]}  Ng3+ {[%clk 0:00:10]} 48. Kh2 {[%clk 0:00:03]}  Nf5+ {[%clk 0:00:10]} 49. Kh1 {[%clk 0:00:03]}  Nh4 {[%clk 0:00:10]} 0-1


[Site "https://www.chess.com"]

[Event "Titled Tuesday Blitz February 14 Late 2023"]
[White "Martynov, Pavel"]
[Black "Lopez Idarraga, Daniel Eduardo"]
[WhiteFideId "4101260"]
[BlackFideId "4405501"]
[WhiteElo "2414"]
[BlackElo "2009"]
[Result "0-1"]
[Round "08"]
[TimeControl "180+2"]
[Date "2023.02.14"]
[WhiteClock "0:00:09"]
[BlackClock "0:00:07"]

1. e4 {[%clk 0:03:00]}  Nf6 {[%clk 0:03:00]} 2. Nc3 {[%clk 0:02:59]}  d5 {[%clk 0:02:59]} 3. exd5 {[%clk 0:03:00]}  Nxd5 {[%clk 0:03:00]} 4. Bc4 {[%clk 0:03:00]}  Nxc3 {[%clk 0:03:00]} 5. bxc3 {[%clk 0:03:01]}  Nd7 {[%clk 0:02:48]} 6. d4 {[%clk 0:02:59]}  Nf6 {[%clk 0:02:48]} 7. Nf3 {[%clk 0:02:59]}  Bg4 {[%clk 0:02:45]} 8. h3 {[%clk 0:02:58]}  Bxf3 {[%clk 0:02:45]} 9. Qxf3 {[%clk 0:02:58]}  c6 {[%clk 0:02:46]} 10. Rb1 {[%clk 0:02:58]}  Qd7 {[%clk 0:02:38]} 11. O-O {[%clk 0:02:49]}  e6 {[%clk 0:02:38]} 12. a4 {[%clk 0:02:48]}  Be7 {[%clk 0:02:37]} 13. a5 {[%clk 0:02:46]}  a6 {[%clk 0:02:36]} 14. Bf4 {[%clk 0:02:33]}  O-O {[%clk 0:02:36]} 15. Rb3 {[%clk 0:02:33]}  Nd5 {[%clk 0:02:28]} 16. Rfb1 {[%clk 0:02:33]}  Nxf4 {[%clk 0:02:26]} 17. Qxf4 {[%clk 0:02:31]}  Rab8 {[%clk 0:02:09]} 18. Qe4 {[%clk 0:02:06]}  Bd6 {[%clk 0:02:02]} 19. f4 {[%clk 0:01:55]}  Qc7 {[%clk 0:01:59]} 20. f5 {[%clk 0:01:54]}  exf5 {[%clk 0:01:56]} 21. Qxf5 {[%clk 0:01:52]}  Qe7 {[%clk 0:01:49]} 22. Kh1 {[%clk 0:01:42]}  Qh4 {[%clk 0:01:43]} 23. Qf3 {[%clk 0:01:22]}  Bc7 {[%clk 0:00:59]} 24. Bd3 {[%clk 0:00:46]}  Rfe8 {[%clk 0:00:56]} 25. Rf1 {[%clk 0:00:41]}  Re7 {[%clk 0:00:53]} 26. d5 {[%clk 0:00:23]}  cxd5 {[%clk 0:00:51]} 27. Rb4 {[%clk 0:00:23]}  Qg5 {[%clk 0:00:45]} 28. Qf5 {[%clk 0:00:19]}  Qxf5 {[%clk 0:00:39]} 29. Bxf5 {[%clk 0:00:17]}  Bxa5 {[%clk 0:00:38]} 30. Rd4 {[%clk 0:00:14]}  Bxc3 {[%clk 0:00:37]} 31. Rxd5 {[%clk 0:00:15]}  g6 {[%clk 0:00:35]} 32. Bd3 {[%clk 0:00:14]}  Re1 {[%clk 0:00:29]} 33. Kg1 {[%clk 0:00:10]}  Rxf1+ {[%clk 0:00:27]} 34. Kxf1 {[%clk 0:00:11]}  b5 {[%clk 0:00:24]} 35. Rd7 {[%clk 0:00:07]}  Kg7 {[%clk 0:00:21]} 36. g4 {[%clk 0:00:07]}  Rb6 {[%clk 0:00:21]} 37. g5 {[%clk 0:00:06]}  Be5 {[%clk 0:00:13]} 38. Kg2 {[%clk 0:00:03]}  Rd6 {[%clk 0:00:13]} 39. Rb7 {[%clk 0:00:03]}  Rc6 {[%clk 0:00:06]} 40. h4 {[%clk 0:00:03]}  Rc7 {[%clk 0:00:06]} 41. Rb6 {[%clk 0:00:03]}  Ra7 {[%clk 0:00:06]} 42. Kf3 {[%clk 0:00:02]}  Bc3 {[%clk 0:00:05]} 43. Kg4 {[%clk 0:00:01]}  b4 {[%clk 0:00:05]} 44. Bc4 {[%clk 0:00:01]}  a5 {[%clk 0:00:05]} 45. Ba2 {[%clk 0:00:02]}  a4 {[%clk 0:00:05]} 46. h5 {[%clk 0:00:03]}  gxh5+ {[%clk 0:00:05]} 47. Kxh5 {[%clk 0:00:04]}  Re7 {[%clk 0:00:03]} 48. Ra6 {[%clk 0:00:03]}  a3 {[%clk 0:00:03]} 49. Kg4 {[%clk 0:00:03]}  Re5 {[%clk 0:00:04]} 50. Ra7 {[%clk 0:00:03]}  Re4+ {[%clk 0:00:04]} 51. Kf5 {[%clk 0:00:02]}  Re5+ {[%clk 0:00:03]} 52. Kf4 {[%clk 0:00:03]}  Rc5 {[%clk 0:00:03]} 53. Rxf7+ {[%clk 0:00:03]}  Kg6 {[%clk 0:00:03]} 54. Rb7 {[%clk 0:00:03]}  Bd2+ {[%clk 0:00:03]} 55. Ke4 {[%clk 0:00:03]}  Rxc2 {[%clk 0:00:02]} 56. Bb1 {[%clk 0:00:02]}  Rc3 {[%clk 0:00:01]} 57. Ke5+ {[%clk 0:00:01]}  Kxg5 {[%clk 0:00:02]} 58. Rg7+ {[%clk 0:00:01]}  Kh4 {[%clk 0:00:02]} 59. Rxh7+ {[%clk 0:00:02]}  Kg3 {[%clk 0:00:03]} 60. Rg7+ {[%clk 0:00:03]}  Kf2 {[%clk 0:00:03]} 61. Be4 {[%clk 0:00:04]}  Ke1 {[%clk 0:00:03]} 62. Rg2 {[%clk 0:00:04]}  Kd1 {[%clk 0:00:04]} 63. Bd5 {[%clk 0:00:05]}  Kc1 {[%clk 0:00:04]} 64. Rg1+ {[%clk 0:00:05]}  Kb2 {[%clk 0:00:02]} 65. Rg2 {[%clk 0:00:05]}  Rc2 {[%clk 0:00:03]} 66. Be4 {[%clk 0:00:06]}  b3 {[%clk 0:00:03]} 67. Bxc2 {[%clk 0:00:05]}  Kxc2 {[%clk 0:00:04]} 68. Rg1 {[%clk 0:00:06]}  b2 {[%clk 0:00:04]} 69. Kd4 {[%clk 0:00:07]}  b1=Q {[%clk 0:00:04]} 70. Rxb1 {[%clk 0:00:07]}  Kxb1 {[%clk 0:00:05]} 71. Kc4 {[%clk 0:00:08]}  a2 {[%clk 0:00:06]} 72. Kd3 {[%clk 0:00:09]}  a1=Q {[%clk 0:00:07]} 0-1


[Site "https://www.chess.com"]

[Event "Titled Tuesday Blitz February 14 Late 2023"]
[White "Poliakova, Varvara"]
[Black "Fan_Of_Chucky"]
[WhiteFideId "13518313"]
[WhiteElo "2010"]
[BlackElo "2398"]
[Result "1-0"]
[Round "08"]
[TimeControl "180+2"]
[Date "2023.02.14"]
[WhiteClock "0:00:13"]
[BlackClock "0:00:03"]

1. e4 {[%clk 0:03:00]}  c5 {[%clk 0:02:59]} 2. Nf3 {[%clk 0:03:00]}  a6 {[%clk 0:02:59]} 3. Nc3 {[%clk 0:02:59]}  b5 {[%clk 0:02:58]} 4. d4 {[%clk 0:02:59]}  e6 {[%clk 0:02:58]} 5. d5 {[%clk 0:02:54]}  d6 {[%clk 0:02:58]} 6. e5 {[%clk 0:02:51]}  dxe5 {[%clk 0:02:52]} 7. Nxe5 {[%clk 0:02:47]}  b4 {[%clk 0:02:29]} 8. dxe6 {[%clk 0:02:43]}  Qxd1+ {[%clk 0:02:23]} 9. Nxd1 {[%clk 0:02:44]}  Bxe6 {[%clk 0:02:23]} 10. b3 {[%clk 0:02:34]}  Be7 {[%clk 0:02:19]} 11. Bc4 {[%clk 0:02:30]}  Bf6 {[%clk 0:02:15]} 12. Bb2 {[%clk 0:02:23]}  Bxc4 {[%clk 0:02:14]} 13. Nxc4 {[%clk 0:02:19]}  Bxb2 {[%clk 0:02:14]} 14. Ndxb2 {[%clk 0:02:20]}  Nf6 {[%clk 0:02:10]} 15. O-O-O {[%clk 0:02:21]}  O-O {[%clk 0:02:11]} 16. Nd3 {[%clk 0:02:16]}  Ne4 {[%clk 0:02:07]} 17. Rde1 {[%clk 0:02:13]}  Nc3 {[%clk 0:02:07]} 18. Nxc5 {[%clk 0:02:12]}  Nxa2+ {[%clk 0:02:06]} 19. Kb2 {[%clk 0:02:12]}  Nc3 {[%clk 0:02:06]} 20. Re7 {[%clk 0:02:01]}  Nc6 {[%clk 0:02:05]} 21. Rc7 {[%clk 0:02:01]}  Rfc8 {[%clk 0:01:59]} 22. Rxc8+ {[%clk 0:02:01]}  Rxc8 {[%clk 0:01:59]} 23. Nxa6 {[%clk 0:01:59]}  Ra8 {[%clk 0:01:55]} 24. Nxb4 {[%clk 0:01:55]}  Nxb4 {[%clk 0:01:40]} 25. Kxc3 {[%clk 0:01:55]}  Nd5+ {[%clk 0:01:39]} 26. Kd4 {[%clk 0:01:54]}  Rd8 {[%clk 0:01:38]} 27. Ne3 {[%clk 0:01:48]}  Nf4+ {[%clk 0:01:32]} 28. Ke4 {[%clk 0:01:46]}  Ne2 {[%clk 0:01:30]} 29. c4 {[%clk 0:01:41]}  Nc3+ {[%clk 0:01:29]} 30. Kf3 {[%clk 0:01:39]}  Rb8 {[%clk 0:01:28]} 31. Ra1 {[%clk 0:01:29]}  g6 {[%clk 0:01:22]} 32. c5 {[%clk 0:01:20]}  Rxb3 {[%clk 0:00:57]} 33. c6 {[%clk 0:01:20]}  Nb5 {[%clk 0:00:54]} 34. Ke4 {[%clk 0:01:11]}  Rc3 {[%clk 0:00:32]} 35. Kd5 {[%clk 0:01:10]}  Kf8 {[%clk 0:00:23]} 36. Ra8+ {[%clk 0:01:07]}  Ke7 {[%clk 0:00:23]} 37. Rh8 {[%clk 0:01:05]}  Nc7+ {[%clk 0:00:22]} 38. Ke4 {[%clk 0:00:57]}  Rxc6 {[%clk 0:00:21]} 39. Rxh7 {[%clk 0:00:57]}  Ne6 {[%clk 0:00:22]} 40. Rh8 {[%clk 0:00:56]}  Ra6 {[%clk 0:00:19]} 41. Nd5+ {[%clk 0:00:55]}  Kd6 {[%clk 0:00:15]} 42. Ne3 {[%clk 0:00:53]}  Ke7 {[%clk 0:00:15]} 43. h4 {[%clk 0:00:51]}  Ra2 {[%clk 0:00:14]} 44. Kf3 {[%clk 0:00:48]}  Nd4+ {[%clk 0:00:15]} 45. Kg3 {[%clk 0:00:47]}  Ne2+ {[%clk 0:00:15]} 46. Kg4 {[%clk 0:00:44]}  Nd4 {[%clk 0:00:13]} 47. Kg3 {[%clk 0:00:38]}  Ne2+ {[%clk 0:00:12]} 48. Kh2 {[%clk 0:00:36]}  Nd4 {[%clk 0:00:10]} 49. Ng4 {[%clk 0:00:35]}  f5 {[%clk 0:00:09]} 50. Ne5 {[%clk 0:00:29]}  Kf6 {[%clk 0:00:09]} 51. f4 {[%clk 0:00:21]}  Rf2 {[%clk 0:00:06]} 52. Rf8+ {[%clk 0:00:19]}  Kg7 {[%clk 0:00:05]} 53. Rf7+ {[%clk 0:00:19]}  Kh6 {[%clk 0:00:04]} 54. Rd7 {[%clk 0:00:19]}  Rxf4 {[%clk 0:00:04]} 55. Kg3 {[%clk 0:00:19]}  Re4 {[%clk 0:00:04]} 56. Nf7+ {[%clk 0:00:19]}  Kh5 {[%clk 0:00:03]} 57. Nd6 {[%clk 0:00:18]}  Rg4+ {[%clk 0:00:03]} 58. Kf2 {[%clk 0:00:18]}  Kxh4 {[%clk 0:00:04]} 59. Nf7 {[%clk 0:00:16]}  Kh5 {[%clk 0:00:03]} 60. Ne5 {[%clk 0:00:15]}  Rf4+ {[%clk 0:00:03]} 61. Kg3 {[%clk 0:00:13]}  Rg4+ {[%clk 0:00:03]} 62. Nxg4 {[%clk 0:00:13]} 1-0


[Site "https://www.chess.com"]

[Event "Titled Tuesday Blitz February 14 Late 2023"]
[White "Nunez V, Gustavo Eduardo"]
[Black "Nefedov, Sergey"]
[WhiteFideId "4403690"]
[BlackFideId "24113417"]
[WhiteElo "2212"]
[BlackElo "2300"]
[Result "1-0"]
[Round "08"]
[TimeControl "180+2"]
[Date "2023.02.14"]
[WhiteClock "0:00:49"]
[BlackClock "0:00:12"]

1. e4 {[%clk 0:02:58]}  d5 {[%clk 0:02:59]} 2. exd5 {[%clk 0:02:58]}  Qxd5 {[%clk 0:03:00]} 3. Nc3 {[%clk 0:02:58]}  Qd8 {[%clk 0:03:01]} 4. d4 {[%clk 0:02:57]}  Nf6 {[%clk 0:03:02]} 5. Nf3 {[%clk 0:02:56]}  Bf5 {[%clk 0:03:01]} 6. Bd3 {[%clk 0:02:55]}  Bg6 {[%clk 0:03:01]} 7. O-O {[%clk 0:02:56]}  e6 {[%clk 0:03:00]} 8. Bf4 {[%clk 0:02:56]}  Be7 {[%clk 0:03:00]} 9. Re1 {[%clk 0:02:55]}  O-O {[%clk 0:02:59]} 10. Qd2 {[%clk 0:02:48]}  c6 {[%clk 0:02:58]} 11. h3 {[%clk 0:02:49]}  Nd5 {[%clk 0:02:57]} 12. Nxd5 {[%clk 0:02:48]}  cxd5 {[%clk 0:02:58]} 13. c3 {[%clk 0:02:45]}  Nc6 {[%clk 0:02:57]} 14. Bxg6 {[%clk 0:02:35]}  hxg6 {[%clk 0:02:57]} 15. Ne5 {[%clk 0:02:36]}  Nxe5 {[%clk 0:02:56]} 16. Bxe5 {[%clk 0:02:35]}  Bd6 {[%clk 0:02:57]} 17. Qf4 {[%clk 0:02:35]}  Bxe5 {[%clk 0:02:57]} 18. dxe5 {[%clk 0:02:32]}  Rc8 {[%clk 0:02:53]} 19. Rad1 {[%clk 0:02:31]}  Rc4 {[%clk 0:02:52]} 20. Rd4 {[%clk 0:02:31]}  b5 {[%clk 0:02:52]} 21. Re3 {[%clk 0:02:26]}  Qe7 {[%clk 0:02:38]} 22. b3 {[%clk 0:02:24]}  Rxd4 {[%clk 0:02:34]} 23. Qxd4 {[%clk 0:02:24]}  Rc8 {[%clk 0:02:35]} 24. a4 {[%clk 0:02:16]}  a6 {[%clk 0:02:18]} 25. axb5 {[%clk 0:02:10]}  axb5 {[%clk 0:02:18]} 26. Qb6 {[%clk 0:02:11]}  b4 {[%clk 0:02:06]} 27. Qxb4 {[%clk 0:02:01]}  Qxb4 {[%clk 0:02:06]} 28. cxb4 {[%clk 0:02:02]}  Rb8 {[%clk 0:02:06]} 29. f4 {[%clk 0:02:01]}  Rxb4 {[%clk 0:02:05]} 30. g3 {[%clk 0:02:02]}  Rd4 {[%clk 0:01:59]} 31. Kf2 {[%clk 0:02:00]}  Rd2+ {[%clk 0:01:58]} 32. Re2 {[%clk 0:01:58]}  Rd4 {[%clk 0:01:44]} 33. Ke3 {[%clk 0:01:50]}  Rb4 {[%clk 0:01:42]} 34. Rb2 {[%clk 0:01:51]}  Kf8 {[%clk 0:01:31]} 35. Kd3 {[%clk 0:01:51]}  Ke7 {[%clk 0:01:29]} 36. Kc3 {[%clk 0:01:51]}  Re4 {[%clk 0:01:17]} 37. Kd3 {[%clk 0:01:49]}  g5 {[%clk 0:01:16]} 38. fxg5 {[%clk 0:01:44]}  Rxe5 {[%clk 0:01:16]} 39. h4 {[%clk 0:01:45]}  Kd6 {[%clk 0:01:12]} 40. b4 {[%clk 0:01:41]}  Re1 {[%clk 0:01:03]} 41. b5 {[%clk 0:01:39]}  Kc7 {[%clk 0:01:03]} 42. Rf2 {[%clk 0:01:33]}  Rd1+ {[%clk 0:00:49]} 43. Ke2 {[%clk 0:01:31]}  Rg1 {[%clk 0:00:39]} 44. Rxf7+ {[%clk 0:01:30]}  Kd6 {[%clk 0:00:39]} 45. Kf2 {[%clk 0:01:25]}  Rb1 {[%clk 0:00:38]} 46. Rxg7 {[%clk 0:01:20]}  d4 {[%clk 0:00:38]} 47. h5 {[%clk 0:01:19]}  Rb2+ {[%clk 0:00:37]} 48. Kf3 {[%clk 0:01:19]}  Rh2 {[%clk 0:00:24]} 49. h6 {[%clk 0:01:18]}  d3 {[%clk 0:00:25]} 50. Rg8 {[%clk 0:01:14]}  Kc7 {[%clk 0:00:24]} 51. b6+ {[%clk 0:01:11]}  Kxb6 {[%clk 0:00:21]} 52. Rd8 {[%clk 0:01:08]}  d2 {[%clk 0:00:21]} 53. Ke3 {[%clk 0:01:01]}  Rh5 {[%clk 0:00:14]} 54. Kxd2 {[%clk 0:00:52]}  Kc7 {[%clk 0:00:12]} 55. Rg8 {[%clk 0:00:49]} 1-0


[Site "https://www.chess.com"]

[Event "Titled Tuesday Blitz February 14 Late 2023"]
[White "Al-Tarboush, Ward"]
[Black "Hoffmann, Asa"]
[WhiteFideId "7601450"]
[BlackFideId "2001470"]
[WhiteElo "2256"]
[BlackElo "2185"]
[Result "1-0"]
[Round "08"]
[TimeControl "180+2"]
[Date "2023.02.14"]
[WhiteClock "0:00:19"]
[BlackClock "0:00:01"]

1. e4 {[%clk 0:02:46]}  d6 {[%clk 0:02:59]} 2. d4 {[%clk 0:02:46]}  Nf6 {[%clk 0:02:59]} 3. Nc3 {[%clk 0:02:44]}  c6 {[%clk 0:02:59]} 4. f4 {[%clk 0:02:41]}  Qa5 {[%clk 0:02:58]} 5. Bd3 {[%clk 0:02:40]}  e5 {[%clk 0:02:57]} 6. Nf3 {[%clk 0:02:39]}  exd4 {[%clk 0:02:57]} 7. Nxd4 {[%clk 0:02:40]}  Qb6 {[%clk 0:02:55]} 8. Be3 {[%clk 0:02:39]}  Ng4 {[%clk 0:02:54]} 9. Qf3 {[%clk 0:02:37]}  Nxe3 {[%clk 0:02:48]} 10. Qxe3 {[%clk 0:02:37]}  Qxb2 {[%clk 0:02:39]} 11. Kd2 {[%clk 0:02:37]}  Qb6 {[%clk 0:02:39]} 12. e5 {[%clk 0:02:35]}  d5 {[%clk 0:02:38]} 13. Rab1 {[%clk 0:02:33]}  Qc7 {[%clk 0:02:34]} 14. e6 {[%clk 0:02:32]}  fxe6 {[%clk 0:02:08]} 15. Nxe6 {[%clk 0:02:32]}  Bxe6 {[%clk 0:02:08]} 16. Qxe6+ {[%clk 0:02:32]}  Be7 {[%clk 0:02:07]} 17. Rhe1 {[%clk 0:02:29]}  Na6 {[%clk 0:01:30]} 18. Bxa6 {[%clk 0:02:12]}  bxa6 {[%clk 0:01:29]} 19. Re5 {[%clk 0:02:07]}  Rd8 {[%clk 0:01:08]} 20. Rbe1 {[%clk 0:01:57]}  Rd7 {[%clk 0:01:07]} 21. Rf5 {[%clk 0:01:45]}  Rf8 {[%clk 0:00:54]} 22. Rxf8+ {[%clk 0:01:44]}  Kxf8 {[%clk 0:00:53]} 23. Na4 {[%clk 0:01:43]}  Rd6 {[%clk 0:00:22]} 24. Qe5 {[%clk 0:01:39]}  Rd7 {[%clk 0:00:14]} 25. Qf5+ {[%clk 0:01:39]}  Kg8 {[%clk 0:00:12]} 26. Qe6+ {[%clk 0:01:36]}  Kf8 {[%clk 0:00:11]} 27. Qf5+ {[%clk 0:01:35]}  Kg8 {[%clk 0:00:11]} 28. Nc5 {[%clk 0:01:26]}  Rd6 {[%clk 0:00:08]} 29. Ne6 {[%clk 0:01:00]}  Qd7 {[%clk 0:00:07]} 30. Qg4 {[%clk 0:00:44]}  Bf6 {[%clk 0:00:07]} 31. f5 {[%clk 0:00:40]}  h6 {[%clk 0:00:06]} 32. Rb1 {[%clk 0:00:36]}  Kf7 {[%clk 0:00:02]} 33. Qg6+ {[%clk 0:00:33]}  Ke7 {[%clk 0:00:01]} 34. Re1 {[%clk 0:00:19]} 1-0


[Site "https://www.chess.com"]

[Event "Titled Tuesday Blitz February 14 Late 2023"]
[White "Delorme, Alban"]
[Black "Jovic, Stanoje"]
[WhiteFideId "623636"]
[BlackFideId "905020"]
[WhiteElo "2298"]
[BlackElo "2075"]
[Result "0-1"]
[Round "08"]
[TimeControl "180+2"]
[Date "2023.02.14"]
[WhiteClock "0:00:02"]
[BlackClock "0:00:55"]

1. e4 {[%clk 0:03:00]}  c6 {[%clk 0:03:00]} 2. d4 {[%clk 0:02:59]}  d5 {[%clk 0:03:00]} 3. Nc3 {[%clk 0:03:00]}  dxe4 {[%clk 0:03:00]} 4. Nxe4 {[%clk 0:03:01]}  Nf6 {[%clk 0:03:00]} 5. Nxf6+ {[%clk 0:02:55]}  exf6 {[%clk 0:03:01]} 6. c3 {[%clk 0:02:56]}  Bd6 {[%clk 0:03:01]} 7. Bd3 {[%clk 0:02:57]}  O-O {[%clk 0:03:01]} 8. Ne2 {[%clk 0:02:55]}  Qc7 {[%clk 0:03:01]} 9. Qc2 {[%clk 0:02:54]}  h6 {[%clk 0:03:01]} 10. O-O {[%clk 0:02:54]}  Bxh2+ {[%clk 0:03:00]} 11. Kh1 {[%clk 0:02:54]}  Bd6 {[%clk 0:03:00]} 12. g3 {[%clk 0:02:50]}  Bg4 {[%clk 0:02:56]} 13. Kg2 {[%clk 0:02:48]}  Qd7 {[%clk 0:02:49]} 14. Rh1 {[%clk 0:02:44]}  Re8 {[%clk 0:02:39]} 15. Be3 {[%clk 0:01:49]}  c5 {[%clk 0:02:34]} 16. Nf4 {[%clk 0:01:41]}  Bxf4 {[%clk 0:02:29]} 17. Bxf4 {[%clk 0:01:39]}  Qc6+ {[%clk 0:02:25]} 18. Kg1 {[%clk 0:01:36]}  h5 {[%clk 0:02:17]} 19. Bf5 {[%clk 0:01:22]}  Bf3 {[%clk 0:02:04]} 20. Kh2 {[%clk 0:00:48]}  cxd4 {[%clk 0:01:57]} 21. g4 {[%clk 0:00:41]}  h4 {[%clk 0:01:45]} 22. Rhe1 {[%clk 0:00:32]}  Na6 {[%clk 0:01:43]} 23. cxd4 {[%clk 0:00:21]}  Qxc2 {[%clk 0:01:41]} 24. Bxc2 {[%clk 0:00:22]}  Nb4 {[%clk 0:01:36]} 25. Bb3 {[%clk 0:00:20]}  Bxg4 {[%clk 0:01:33]} 26. a3 {[%clk 0:00:16]}  Nd3 {[%clk 0:01:30]} 27. Rxe8+ {[%clk 0:00:15]}  Rxe8 {[%clk 0:01:29]} 28. Be3 {[%clk 0:00:16]}  b6 {[%clk 0:01:23]} 29. Bc2 {[%clk 0:00:11]}  Nxb2 {[%clk 0:01:21]} 30. a4 {[%clk 0:00:08]}  Nc4 {[%clk 0:01:20]} 31. Re1 {[%clk 0:00:03]}  Nxe3 {[%clk 0:01:16]} 32. fxe3 {[%clk 0:00:04]}  f5 {[%clk 0:01:14]} 33. Kg2 {[%clk 0:00:02]}  Kf8 {[%clk 0:01:10]} 34. Kf2 {[%clk 0:00:02]}  Rc8 {[%clk 0:01:07]} 35. Bd3 {[%clk 0:00:01]}  Rc3 {[%clk 0:01:05]} 36. Bb5 {[%clk 0:00:02]}  Rc2+ {[%clk 0:01:04]} 37. Kg1 {[%clk 0:00:02]}  Bf3 {[%clk 0:01:03]} 38. Rf1 {[%clk 0:00:01]}  Rg2+ {[%clk 0:01:01]} 39. Kh1 {[%clk 0:00:01]}  Rf2+ {[%clk 0:01:01]} 40. Kg1 {[%clk 0:00:02]}  Rxf1+ {[%clk 0:01:01]} 41. Kxf1 {[%clk 0:00:03]}  g5 {[%clk 0:01:01]} 42. Kf2 {[%clk 0:00:03]}  Be4 {[%clk 0:01:01]} 43. Bd7 {[%clk 0:00:02]}  Ke7 {[%clk 0:00:59]} 44. Bc8 {[%clk 0:00:02]}  g4 {[%clk 0:00:57]} 45. Ba6 {[%clk 0:00:02]}  Bc6 {[%clk 0:00:55]} 0-1


[Site "https://www.chess.com"]

[Event "Titled Tuesday Blitz February 14 Late 2023"]
[White "Bjelobrk, Igor"]
[Black "Bilan, Danila"]
[WhiteFideId "4300726"]
[BlackFideId "24161918"]
[WhiteElo "2403"]
[BlackElo "2303"]
[Result "1-0"]
[Round "08"]
[TimeControl "180+2"]
[Date "2023.02.14"]
[WhiteClock "0:00:09"]
[BlackClock "0:00:14"]

1. d4 {[%clk 0:03:00]}  d5 {[%clk 0:02:59]} 2. c4 {[%clk 0:03:00]}  c6 {[%clk 0:02:59]} 3. Nc3 {[%clk 0:02:43]}  Nf6 {[%clk 0:02:58]} 4. Nf3 {[%clk 0:02:39]}  e6 {[%clk 0:02:57]} 5. g3 {[%clk 0:02:31]}  dxc4 {[%clk 0:02:54]} 6. Bg2 {[%clk 0:02:30]}  Bb4 {[%clk 0:02:45]} 7. O-O {[%clk 0:02:27]}  b5 {[%clk 0:02:41]} 8. Ne5 {[%clk 0:02:26]}  Bb7 {[%clk 0:02:41]} 9. Nxb5 {[%clk 0:02:23]}  Nd5 {[%clk 0:02:36]} 10. Nc3 {[%clk 0:02:11]}  Bxc3 {[%clk 0:02:16]} 11. bxc3 {[%clk 0:02:10]}  Nxc3 {[%clk 0:02:16]} 12. Qd2 {[%clk 0:02:09]}  Nd5 {[%clk 0:02:12]} 13. Rb1 {[%clk 0:02:08]}  Ba6 {[%clk 0:02:09]} 14. Ba3 {[%clk 0:02:02]}  c3 {[%clk 0:01:47]} 15. Qc2 {[%clk 0:02:00]}  f6 {[%clk 0:01:46]} 16. Nd3 {[%clk 0:01:58]}  Kf7 {[%clk 0:01:43]} 17. e4 {[%clk 0:01:56]}  Nb6 {[%clk 0:01:37]} 18. Rfd1 {[%clk 0:01:38]}  N8d7 {[%clk 0:01:31]} 19. Qxc3 {[%clk 0:01:36]}  Bb5 {[%clk 0:01:24]} 20. Nc5 {[%clk 0:01:30]}  Nc4 {[%clk 0:01:10]} 21. Bh3 {[%clk 0:01:17]}  Nxc5 {[%clk 0:01:03]} 22. Bxc5 {[%clk 0:01:13]}  Nb6 {[%clk 0:00:53]} 23. Qf3 {[%clk 0:00:25]}  Re8 {[%clk 0:00:51]} 24. Rbc1 {[%clk 0:00:15]}  Rc8 {[%clk 0:00:41]} 25. Ba3 {[%clk 0:00:15]}  Nc4 {[%clk 0:00:33]} 26. d5 {[%clk 0:00:15]}  cxd5 {[%clk 0:00:26]} 27. exd5 {[%clk 0:00:15]}  exd5 {[%clk 0:00:20]} 28. Bxc8 {[%clk 0:00:14]}  Qxc8 {[%clk 0:00:15]} 29. Qxd5+ {[%clk 0:00:14]}  Qe6 {[%clk 0:00:14]} 30. Qxb5 {[%clk 0:00:14]}  Nxa3 {[%clk 0:00:14]} 31. Qd7+ {[%clk 0:00:12]}  Re7 {[%clk 0:00:10]} 32. Qxe6+ {[%clk 0:00:12]}  Kxe6 {[%clk 0:00:11]} 33. Rc6+ {[%clk 0:00:12]}  Kf5 {[%clk 0:00:09]} 34. Ra6 {[%clk 0:00:13]}  Nb5 {[%clk 0:00:07]} 35. Ra5 {[%clk 0:00:13]}  Re5 {[%clk 0:00:07]} 36. Rb1 {[%clk 0:00:13]}  Nc3 {[%clk 0:00:06]} 37. Rxe5+ {[%clk 0:00:13]}  fxe5 {[%clk 0:00:07]} 38. Rb7 {[%clk 0:00:14]}  Nxa2 {[%clk 0:00:07]} 39. Rxg7 {[%clk 0:00:14]}  a6 {[%clk 0:00:07]} 40. Rxh7 {[%clk 0:00:14]}  Nb4 {[%clk 0:00:08]} 41. Ra7 {[%clk 0:00:14]}  Ke4 {[%clk 0:00:08]} 42. h4 {[%clk 0:00:14]}  Kd5 {[%clk 0:00:08]} 43. h5 {[%clk 0:00:14]}  Kc6 {[%clk 0:00:09]} 44. h6 {[%clk 0:00:15]}  Kb6 {[%clk 0:00:10]} 45. Ra8 {[%clk 0:00:15]}  Nc6 {[%clk 0:00:10]} 46. h7 {[%clk 0:00:14]}  e4 {[%clk 0:00:11]} 47. h8=Q {[%clk 0:00:14]}  e3 {[%clk 0:00:12]} 48. fxe3 {[%clk 0:00:14]}  a5 {[%clk 0:00:11]} 49. g4 {[%clk 0:00:14]}  Kb5 {[%clk 0:00:11]} 50. g5 {[%clk 0:00:14]}  Ne5 {[%clk 0:00:12]} 51. Qxe5+ {[%clk 0:00:13]}  Kc4 {[%clk 0:00:12]} 52. Rc8+ {[%clk 0:00:13]}  Kb3 {[%clk 0:00:13]} 53. Qc3+ {[%clk 0:00:12]}  Ka4 {[%clk 0:00:14]} 54. Qc4+ {[%clk 0:00:09]}  Ka3 {[%clk 0:00:14]} 55. Rb8 {[%clk 0:00:09]} 1-0


[Site "https://www.chess.com"]